fUST/lending_fUST_20250603
["ID","MTS","AMOUNT","RATE_DAILY","PERIOD"]
[363851404,1748898658914,-186.775117,0.00023314,7]
[363851406,1748898658923,-986.35,0.00023375,6]
[363851407,1748898658933,-1000.0,0.000234,2]
[363851409,1748898658942,-187.146161,0.000234,2]
[363851411,1748898658951,-711.87223538,0.00023417,9]
[363851413,1748898658960,-986.35,0.00023475,5]
[363851414,1748898658970,-26086.90243366,0.00023487,2]
[363851416,1748898658980,-151.0,0.00023487,7]
[363851418,1748898658989,-151.977199,0.00023487,7]
[363851419,1748898658998,-156.463588,0.00023487,7]
[363851421,1748898659008,-156.463588,0.00023487,7]
[363851423,1748898659017,-151.548224,0.00023487,7]
[363851425,1748898659026,-151.0,0.00023487,7]
[363851426,1748898659035,-151.0,0.00023487,7]
[363851428,1748898659045,-151.0,0.00023487,7]
[363851430,1748898659054,-151.0,0.00023487,7]
[363851431,1748898659063,-151.0,0.00023487,7]
[363851433,1748898659073,-524.200703,0.00023487,7]
[363851435,1748898659082,-524.200703,0.00023487,7]
[363851436,1748898659092,-1077.987518,0.00023487,7]
[363851438,1748898659103,-1077.987518,0.00023487,7]
[363851440,1748898659112,-151.0,0.00023487,7]
[363851442,1748898659122,-151.0,0.00023487,7]
[363851443,1748898659131,-354.924737,0.00023487,7]
[363851445,1748898659141,-354.924737,0.00023487,7]
[363851447,1748898659150,-518.837804,0.00023487,7]
[363851449,1748898659159,-518.837804,0.00023487,7]
[363851450,1748898659169,-674.046634,0.00023487,7]
[363851452,1748898659179,-362.202484,0.00023487,7]
[363851454,1748898659189,-674.046634,0.00023487,7]
[363851455,1748898659198,-362.202484,0.00023487,7]
[363851457,1748898659208,-151.0,0.00023487,7]
[363851459,1748898659217,-65895.77828792,0.000235,2]
[363851461,1748898659227,-732.51623182,0.000235,2]
[363851462,1748898659236,-2000.0,0.000235,2]
[363851464,1748898659245,-2000.0,0.000235,2]
[363851466,1748898659255,-4057.78858612,0.000235,2]
[363851467,1748898659264,-2000.0,0.000235,2]
[363851469,1748898659273,-151.0,0.000235,7]
[363851471,1748898659283,-151.0,0.000235,7]
[363851473,1748898659293,-151.0,0.000235,7]
[363851474,1748898659302,-151.0,0.000235,7]
[363851476,1748898659311,-151.0,0.000235,7]
[363851478,1748898659321,-151.0,0.000235,7]
[363851480,1748898659331,-151.0,0.000235,7]
[363851481,1748898659340,-151.0,0.000235,7]
[363851483,1748898659349,-152.249243,0.000235,7]
[363851485,1748898659359,-151.0,0.000235,7]
[363851486,1748898659368,-1642.527639,0.000235,2]
[363851488,1748898659377,-1642.527639,0.000235,2]
[363851490,1748898659387,-151.0,0.000235,7]
[363851491,1748898659397,-283.483007,0.000235,7]
[363851493,1748898659406,-156.463588,0.000235,7]
[363851495,1748898659416,-156.463588,0.000235,7]
[363851497,1748898659427,-220.822421,0.000235,7]
[363851499,1748898659436,-220.822421,0.000235,7]
[363851500,1748898659445,-151.0,0.000235,7]
[363851501,1748898659454,-151.0,0.000235,7]
[363851502,1748898659463,-242.106804,0.000235,7]
[363851503,1748898659472,-242.106804,0.000235,7]
[363851504,1748898659481,-151.0,0.000235,7]
[363851505,1748898659491,-160.013418,0.000235,7]
[363851506,1748898659500,-160.013418,0.000235,7]
[363851507,1748898659509,-151.0,0.000235,7]
[363851508,1748898659518,-151.0,0.000235,7]
[363851509,1748898659527,-266.10042,0.000235,7]
[363851510,1748898659537,-186.775117,0.000235,7]
[363851511,1748898659546,-186.775117,0.000235,7]
[363851512,1748898659554,-151.0,0.000235,7]
[363851513,1748898659563,-151.0,0.000235,7]
[363851514,1748898659572,-410.536259,0.000235,7]
[363851515,1748898659581,-410.536259,0.000235,7]
[363851517,1748898659590,-1326.837435,0.000235,2]
[363851519,1748898659601,-1326.837443,0.000235,2]
[363851521,1748898659611,-396.594112,0.000235,7]
[363851523,1748898659620,-396.594102,0.000235,7]
[363851525,1748898659629,-481.431687,0.000235,7]
[363851527,1748898659639,-481.43169,0.000235,7]
[363851529,1748898659650,-500.0,0.00023561,2]
[363851531,1748898659659,-986.35,0.00023575,7]
[363851533,1748898659668,-207.0,0.000236,2]
[363851535,1748898659677,-4921.12156977,0.000236,3]
[363851537,1748898659687,-157.326329,0.000236,3]
[363851539,1748898659696,-151.0,0.00023602,7]
[363851541,1748898659705,-152.702403,0.00023602,7]
[363851543,1748898659715,-151.0,0.00023602,7]
[363851545,1748898659724,-157.326329,0.00023602,7]
[363851547,1748898659733,-151.0,0.00023602,7]
[363851549,1748898659742,-518.837804,0.00023602,7]
[363851550,1748898659751,-518.837804,0.00023602,7]
[363851552,1748898659761,-4277.46009382,0.00023602,2]
[363851555,1748898659773,-5000.0,0.00023602,2]
[363851557,1748898659783,-1289.0,0.00023645,6]
[363851558,1748898659792,-711.87223538,0.00023659,9]
[363851560,1748898659801,-151.0,0.0002367,7]
[363851562,1748898659811,-151.0,0.0002367,7]
[363851564,1748898659820,-524.200703,0.0002367,7]
[363851566,1748898659830,-524.200703,0.0002367,7]
[363851568,1748898659839,-1077.987518,0.0002367,7]
[363851570,1748898659849,-1077.987518,0.0002367,7]
[363851572,1748898659858,-986.35,0.00023675,5]
[363851574,1748898659867,-354.924737,0.00023678,7]
[363851576,1748898659882,-354.924737,0.00023678,7]
[363851579,1748898659892,-151.0,0.00023699,7]
[363851580,1748898659901,-151.0,0.00023699,7]
[363851583,1748898659911,-220.822421,0.00023699,7]
[363851584,1748898659921,-220.822421,0.00023699,7]
[363851586,1748898659932,-151.0,0.00023699,7]
[363851589,1748898659941,-151.0,0.00023699,7]
[363851590,1748898659951,-162.379626,0.00023699,7]
[363851592,1748898659960,-674.046634,0.00023699,7]
[363851594,1748898659969,-362.202484,0.00023699,7]
[363851597,1748898659979,-674.046634,0.00023699,7]
[363851598,1748898659988,-362.202484,0.00023699,7]
[363851600,1748898659998,-410.536259,0.00023699,7]
[363851602,1748898660007,-410.536259,0.00023699,7]
[363851613,1748898660099,-263.811991,0.00023699,7]
[363851615,1748898660111,-5000.0,0.00023699,2]
[363851617,1748898660120,-5000.0,0.00023699,2]
[363851619,1748898660132,-5000.0,0.00023699,2]
[363851621,1748898660142,-5000.0,0.00023699,2]
[363851623,1748898660152,-5000.0,0.00023699,2]
[363851625,1748898660162,-47999.23,0.000237,2]
[363851627,1748898660172,-154.1,0.000237,31]
[363851629,1748898660182,-154.1,0.000237,31]
[363851631,1748898660192,-154.1,0.000237,31]
[363851633,1748898660202,-154.1,0.000237,31]
[363851635,1748898660211,-154.1,0.000237,31]
[363851637,1748898660221,-154.1,0.000237,31]
[363851639,1748898660232,-154.1,0.000237,31]
[363851642,1748898660242,-151.0,0.00023727,7]
[363851644,1748898660252,-249.50508,0.00023728,7]
[363851646,1748898660263,-242.106804,0.00023728,7]
[363851648,1748898660272,-242.106804,0.00023728,7]
[363851650,1748898660282,-160.013418,0.00023728,7]
[363851652,1748898660292,-160.013418,0.00023728,7]
[363851653,1748898660301,-181.654485,0.00023744,2]
[363851656,1748898660311,-151.0,0.00023756,7]
[363851658,1748898660321,-151.0,0.00023756,7]
[363851660,1748898660331,-151.0,0.00023756,7]
[363851661,1748898660342,-151.0,0.00023756,7]
[363851663,1748898660358,-151.0,0.00023756,7]
[363851665,1748898660368,-1642.527639,0.00023756,2]
[363851667,1748898660379,-1642.527639,0.00023756,2]
[363851669,1748898660388,-151.0,0.00023756,7]
[363851672,1748898660399,-156.463588,0.00023756,7]
[363851673,1748898660409,-156.463588,0.00023756,7]
[363851676,1748898660419,-151.0,0.00023756,7]
[363851677,1748898660428,-151.0,0.00023756,7]
[363851679,1748898660437,-151.0,0.00023756,7]
[363851681,1748898660446,-195.690589,0.00023756,7]
[363851683,1748898660456,-186.775117,0.00023756,7]
[363851685,1748898660465,-186.775117,0.00023756,7]
[363851687,1748898660475,-5000.0,0.00023756,2]
[363851689,1748898660484,-5000.0,0.00023756,2]
[363851691,1748898660495,-5000.0,0.00023756,2]
[363851693,1748898660505,-5000.0,0.00023756,2]
[363851696,1748898660515,-5000.0,0.00023756,2]
[363851698,1748898660524,-7519.12824661,0.00023756,2]
[363851700,1748898660533,-5000.0,0.00023756,2]
[363851702,1748898660543,-5000.0,0.00023756,2]
[363851704,1748898660552,-5000.0,0.00023756,2]
[363851706,1748898660561,-5000.0,0.00023756,2]
[363851708,1748898660571,-151.0,0.00023759,7]
[363851710,1748898660582,-151.0,0.00023759,7]
[363851712,1748898660591,-220.822421,0.00023759,7]
[363851714,1748898660601,-220.822421,0.00023759,7]
[363851716,1748898660614,-242.106804,0.00023759,7]
[363851718,1748898660624,-242.106804,0.00023759,7]
[363851720,1748898660633,-160.013418,0.00023759,7]
[363851722,1748898660644,-160.013423,0.00023759,7]
[363851724,1748898660654,-151.0,0.00023759,7]
[363851726,1748898660663,-151.0,0.00023759,7]
[363851728,1748898660672,-524.200703,0.00023759,7]
[363851730,1748898660685,-524.200703,0.00023759,7]
[363851732,1748898660695,-1077.987518,0.00023759,7]
[363851734,1748898660704,-1077.987518,0.00023759,7]
[363851736,1748898660713,-151.0,0.00023759,7]
[363851738,1748898660722,-151.0,0.00023759,7]
[363851740,1748898660732,-354.924737,0.00023759,7]
[363851742,1748898660741,-354.924737,0.00023759,7]
[363851744,1748898660751,-518.837804,0.00023759,7]
[363851746,1748898660760,-518.837804,0.00023759,7]
[363851748,1748898660770,-3180.98891921,0.0002376,2]
[363851766,1748898660930,-500.0,0.00019178,2]
[363851769,1748898660939,-445.0,0.0002376,2]
[363851771,1748898660951,-254.87,0.0002376,2]
[363851773,1748898660962,-844.76062011,0.0002376,2]
[363851776,1748898660985,-169.33409219,0.00018071,2]
[363851778,1748898660995,-157.752796,0.00022454,7]
[363851780,1748898661005,-299.52016546,0.0002376,2]
[363851782,1748898661014,-5000.0,0.0002376,2]
[363851784,1748898661024,-5000.0,0.0002376,2]
[363851786,1748898661033,-5000.0,0.0002376,2]
[363851788,1748898661043,-5000.0,0.0002376,2]
[363851790,1748898661052,-5000.0,0.0002376,2]
[363851792,1748898661061,-151.0,0.00023766,7]
[363851794,1748898661070,-151.0,0.00023766,7]
[363851796,1748898661080,-151.0,0.0002377,7]
[363851798,1748898661090,-410.536259,0.0002377,7]
[363851800,1748898661099,-410.536264,0.0002377,7]
[363851802,1748898661108,-500.0,0.00023773,2]
[363851804,1748898661118,-151.0,0.00023775,7]
[363851806,1748898661127,-986.35,0.00023775,4]
[363851808,1748898661137,-1642.527639,0.00023777,2]
[363851810,1748898661146,-1642.527639,0.00023777,2]
[363851812,1748898661156,-385.58925427,0.0002378,7]
[363851840,1748898661410,-1571.84447093,0.00016699,2]
[363851842,1748898661419,-430.0,0.000167,2]
[363851844,1748898661429,-151.0,0.00017797,2]
[363851846,1748898661439,-157.752796,0.00018071,2]
[363851848,1748898661448,-160.0,0.00018095,2]
[363851850,1748898661457,-151.0,0.00018345,2]
[363851852,1748898661467,-157.752796,0.00018619,2]
[363851854,1748898661476,-151.0,0.00019167,2]
[363851856,1748898661485,-157.752796,0.0001944,2]
[363851859,1748898661496,-151.0,0.00019771,2]
[363851861,1748898661505,-157.752796,0.00020152,2]
[363851863,1748898661515,-157.752796,0.00020599,2]
[363851865,1748898661524,-157.752796,0.00021358,2]
[363851867,1748898661534,-157.752796,0.00021906,2]
[363851869,1748898661544,-157.752796,0.0002229,7]
[363851871,1748898661554,-157.752796,0.00022454,7]
[363851873,1748898661564,-157.752796,0.00023,7]
[363851875,1748898661573,-157.75279,0.00023,7]
[363851877,1748898661583,-498.87477907,0.0002378,7]
[363851879,1748898661599,-624.72110049,0.0002378,7]
[363851882,1748898661615,-1779.63807664,0.0002378,7]
[363851884,1748898661627,-936059.08093097,0.0002378,7]
[363851886,1748898661639,-7772.57448222,0.0002378,7]
[363851888,1748898661651,-3516.28229565,0.0002378,7]
[363851891,1748898661666,-49363.23908069,0.0002378,7]
[363851893,1748898661676,-151.0,0.0002378,7]
[363851895,1748898661687,-1642.527639,0.0002378,2]
[363851897,1748898661697,-1642.527639,0.0002378,2]
[363851899,1748898661707,-151.0,0.0002378,7]
[363851901,1748898661716,-156.463588,0.0002378,7]
[363851903,1748898661726,-156.463588,0.0002378,7]
[363851905,1748898661736,-220.822421,0.0002378,7]
[363851907,1748898661746,-220.822421,0.0002378,7]
[363851909,1748898661756,-151.0,0.0002378,7]
[363851911,1748898661766,-242.106804,0.0002378,7]
[363851913,1748898661775,-242.106804,0.0002378,7]
[363851915,1748898661786,-151.459583,0.0002378,7]
[363851917,1748898661796,-151.0,0.0002378,7]
[363851919,1748898661805,-151.0,0.0002378,7]
[363851921,1748898661815,-151.0,0.0002378,7]
[363851923,1748898661824,-524.200703,0.0002378,7]
[363851925,1748898661833,-524.200703,0.0002378,7]
[363851927,1748898661842,-1077.987518,0.0002378,7]
[363851929,1748898661852,-1077.987518,0.0002378,7]
[363851931,1748898661861,-151.0,0.0002378,7]
[363851933,1748898661870,-219.362236,0.0002378,7]
[363851935,1748898661880,-186.775117,0.0002378,7]
[363851937,1748898661890,-186.775117,0.0002378,7]
[363851939,1748898661899,-354.924737,0.0002378,7]
[363851941,1748898661909,-354.924735,0.0002378,7]
[363851943,1748898661919,-518.837804,0.0002378,7]
[363851945,1748898661928,-518.837804,0.0002378,7]
[363851947,1748898661937,-674.046634,0.0002378,7]
[363851949,1748898661947,-362.202484,0.0002378,7]
[363851951,1748898661957,-674.046634,0.0002378,7]
[363851953,1748898661967,-362.202484,0.0002378,7]
[363851955,1748898661976,-151.0,0.00023793,7]
[363851957,1748898661985,-2000.0,0.000238,2]
[363851959,1748898662001,-117227.32868485,0.000238,2]
[363851962,1748898662015,-5320.25896628,0.000238,2]
[363851974,1748898662119,-440.0,0.00016701,2]
[363851976,1748898662129,-420.0,0.00016975,2]
[363851978,1748898662140,-151.0,0.00020262,2]
[363851980,1748898662150,-15.52084843,0.000206,2]
[363851982,1748898662163,-135.47915157,0.000206,2]
[363851984,1748898662173,-151.0,0.00021084,2]
[363851986,1748898662183,-110.46200873,0.00021624,2]
[363851988,1748898662195,-64.83121227,0.00021624,2]
[363851990,1748898662206,-703.27688682,0.000217,2]
[363851993,1748898662219,-5665.10104132,0.000217,2]
[363851995,1748898662228,-160.0,0.00023,3]
[363851997,1748898662237,-1750.46813239,0.000238,2]
[363851999,1748898662251,-12494.76224028,0.000238,2]
[363852005,1748898662295,-416.65490336,0.000238,2]
[363852007,1748898662307,-383.112,0.000238,2]
[363852016,1748898662381,-440.0,0.00016701,2]
[363852018,1748898662390,-79.47999996,0.00016975,2]
[363852020,1748898662402,-360.52000004,0.00016975,2]
[363852022,1748898662411,-430.0,0.00017249,2]
[363852024,1748898662422,-74.97999996,0.00023,3]
[363852026,1748898662434,-85.02000004,0.00023,3]
[363852028,1748898662444,-1201.61999995,0.000238,2]
[363852031,1748898662456,-27094.83932116,0.000238,2]
[363852033,1748898662468,-1609.42739068,0.000238,2]
[363852035,1748898662480,-1264.75967926,0.000238,2]
[363852037,1748898662494,-28232.96432149,0.000238,2]
[363852046,1748898662570,-300.0,0.00017248,2]
[363852048,1748898662580,-199.99913388,0.00021943,2]
[363852050,1748898662591,-460.64002672,0.00021943,2]
[363852052,1748898662602,-4134.84466758,0.00021943,2]
[363852054,1748898662617,-1572.89409988,0.00021943,2]
[363852056,1748898662627,-2860.84998961,0.000238,2]
[363852059,1748898662638,-6275.75446281,0.000238,2]
[363852306,1748899543113,-169.79124585,0.00016598,2]
[363852307,1748899543135,-242.72254298,0.000166,2]
[363852308,1748899543156,-720.0,0.00016672,2]
[363852309,1748899543178,-350.55412938,0.00016673,2]
[363852413,1748899831791,-172.91760581,0.00016597,2]
[363852416,1748899831807,-300.0,0.00016672,2]
[363852418,1748899831818,-296.64804132,0.00016673,2]
[363852419,1748899831828,-500.0,0.00016673,2]
[363852421,1748899831837,-160.0,0.00016694,2]
[363852424,1748899831847,-180.0,0.00016695,2]
[363852425,1748899831856,-300.0,0.00016695,2]
[363852428,1748899831866,-300.0,0.00016695,2]
[363852429,1748899831875,-300.0,0.00016695,2]
[363852431,1748899831885,-216.07266042,0.00016696,2]
[363852435,1748899831895,-430.0,0.00016696,2]
[363852437,1748899831904,-430.0,0.00016696,2]
[363852440,1748899831914,-440.0,0.00016696,2]
[363852444,1748899831924,-440.0,0.00016696,2]
[363852445,1748899831933,-440.0,0.00016696,2]
[363852447,1748899831943,-440.0,0.00016696,2]
[363852449,1748899831953,-430.0,0.00016696,2]
[363852452,1748899831963,-430.0,0.00016696,2]
[363852454,1748899831973,-440.0,0.00016696,2]
[363852456,1748899831982,-430.0,0.00016696,2]
[363852457,1748899831993,-440.0,0.00016696,2]
[363852459,1748899832005,-440.0,0.00016696,2]
[363852461,1748899832015,-440.0,0.00016696,2]
[363852463,1748899832024,-313.19630834,0.00016696,2]
[363852465,1748899832036,-430.0,0.00016696,2]
[363852467,1748899832045,-440.0,0.00016696,2]
[363852469,1748899832055,-430.0,0.00016696,2]
[363852472,1748899832068,-440.0,0.00016696,2]
[363852474,1748899832082,-446.21677449,0.00016696,2]
[363852476,1748899832095,-430.0,0.00016696,2]
[363852479,1748899832105,-440.0,0.00016696,2]
[363852481,1748899832115,-440.0,0.00016696,2]
[363852483,1748899832125,-500.0,0.00016696,2]
[363852485,1748899832135,-250.0,0.00016696,2]
[363852487,1748899832144,-500.0,0.00016696,2]
[363852489,1748899832154,-198.0,0.00016696,2]
[363852491,1748899832164,-500.0,0.00016696,2]
[363852493,1748899832174,-562.60285519,0.00016696,2]
[363852494,1748899832184,-500.0,0.00016696,2]
[363852496,1748899832194,-366.4470439,0.00016696,2]
[363852497,1748899832203,-500.0,0.00016696,2]
[363852499,1748899832213,-374.49646234,0.00016696,2]
[363852501,1748899832223,-500.0,0.00016696,2]
[363852503,1748899832232,-500.0,0.00016696,2]
[363852505,1748899832242,-500.0,0.00016696,2]
[363852506,1748899832251,-500.0,0.00016696,2]
[363852508,1748899832260,-500.0,0.00016696,2]
[363852510,1748899832270,-500.0,0.00016696,2]
[363852512,1748899832280,-500.0,0.00016696,2]
[363852513,1748899832290,-500.0,0.00016696,2]
[363852514,1748899832299,-500.0,0.00016696,2]
[363852515,1748899832309,-440.0,0.00016697,2]
[363852516,1748899832319,-450.0,0.00016697,2]
[363852517,1748899832329,-440.0,0.00016697,2]
[363852518,1748899832339,-440.0,0.00016697,2]
[363852519,1748899832349,-430.0,0.00016697,2]
[363852520,1748899832360,-430.92488639,0.00016697,2]
[363852521,1748899832369,-430.0,0.00016697,2]
[363852522,1748899832379,-430.0,0.00016697,2]
[363852524,1748899832389,-430.0,0.00016697,2]
[363852525,1748899832398,-430.0,0.00016697,2]
[363852527,1748899832408,-430.0,0.00016697,2]
[363852528,1748899832418,-430.0,0.00016697,2]
[363852530,1748899832429,-440.0,0.00016697,2]
[363852532,1748899832442,-447.75659329,0.00016697,2]
[363852534,1748899832452,-440.0,0.00016697,2]
[363852536,1748899832462,-465.64,0.00016697,2]
[363852538,1748899832471,-440.0,0.00016697,2]
[363852539,1748899832481,-430.0,0.00016697,2]
[363852541,1748899832491,-430.0,0.00016697,2]
[363852543,1748899832502,-500.0,0.00016697,2]
[363852545,1748899832512,-430.0,0.00016697,2]
[363852547,1748899832522,-518.23033614,0.00016697,2]
[363852549,1748899832532,-430.0,0.00016697,2]
[363852550,1748899832542,-500.0,0.00016697,2]
[363852552,1748899832553,-430.0,0.00016697,2]
[363852554,1748899832563,-440.0,0.00016697,2]
[363852556,1748899832572,-440.0,0.00016697,2]
[363852558,1748899832582,-430.0,0.00016697,2]
[363852560,1748899832592,-430.0,0.00016697,2]
[363852561,1748899832602,-440.0,0.00016697,2]
[363852563,1748899832612,-440.0,0.00016697,2]
[363852564,1748899832621,-430.0,0.00016697,2]
[363852565,1748899832630,-440.0,0.00016697,2]
[363852566,1748899832640,-440.0,0.00016697,2]
[363852567,1748899832650,-430.0,0.00016697,2]
[363852568,1748899832659,-430.0,0.00016697,2]
[363852569,1748899832668,-440.0,0.00016697,2]
[363852570,1748899832677,-858.73,0.00016697,2]
[363852571,1748899832686,-430.0,0.00016697,2]
[363852572,1748899832695,-430.0,0.00016697,2]
[363852573,1748899832704,-400.0,0.00016697,2]
[363852574,1748899832713,-430.0,0.00016697,2]
[363852575,1748899832723,-440.0,0.00016697,2]
[363852576,1748899832733,-430.0,0.00016697,2]
[363852577,1748899832742,-440.0,0.00016697,2]
[363852578,1748899832752,-401.94723826,0.00016697,2]
[363852579,1748899832761,-440.0,0.00016697,2]
[363852580,1748899832771,-440.0,0.00016697,2]
[363852581,1748899832780,-440.0,0.00016697,2]
[363852582,1748899832790,-440.0,0.00016697,2]
[363852583,1748899832800,-430.0,0.00016697,2]
[363852584,1748899832809,-440.0,0.00016697,2]
[363852585,1748899832818,-440.0,0.00016697,2]
[363852586,1748899832829,-430.0,0.00016697,2]
[363852587,1748899832839,-430.0,0.00016697,2]
[363852588,1748899832848,-430.0,0.00016697,2]
[363852589,1748899832857,-440.0,0.00016697,2]
[363852590,1748899832866,-430.0,0.00016697,2]
[363852591,1748899832875,-430.0,0.00016697,2]
[363852593,1748899832885,-430.0,0.00016697,2]
[363852595,1748899832895,-430.0,0.00016697,2]
[363852596,1748899832905,-504.65418729,0.00016697,2]
[363852597,1748899832915,-430.0,0.00016697,2]
[363852598,1748899832925,-430.0,0.00016697,2]
[363852599,1748899832935,-804.7,0.00016697,2]
[363852600,1748899832944,-440.0,0.00016697,2]
[363852601,1748899832954,-440.0,0.00016697,2]
[363852602,1748899832963,-440.0,0.00016697,2]
[363852603,1748899832972,-75.71900682,0.00016697,2]
[363852604,1748899833020,-364.28099318,0.00016697,2]
[363852605,1748899833030,-500.0,0.00016697,2]
[363852606,1748899833040,-500.0,0.00016697,2]
[363852607,1748899833050,-430.0,0.00016697,2]
[363852608,1748899833059,-160.73316487,0.00016697,2]
[363852609,1748899833069,-440.0,0.00016697,2]
[363852610,1748899833078,-488.47,0.00016697,2]
[363852611,1748899833088,-430.0,0.00016697,2]
[363852612,1748899833098,-430.0,0.00016697,2]
[363852613,1748899833108,-603.16,0.00016697,2]
[363852614,1748899833118,-440.0,0.00016697,2]
[363852615,1748899833127,-430.0,0.00016697,2]
[363852616,1748899833137,-440.0,0.00016697,2]
[363852617,1748899833146,-450.0,0.00016697,2]
[363852618,1748899833286,-576.77547368,0.00016697,2]
[363852619,1748899833297,-430.0,0.00016697,2]
[363852620,1748899833307,-430.0,0.00016697,2]
[363852621,1748899833316,-430.0,0.00016697,2]
[363852622,1748899833326,-430.0,0.00016697,2]
[363852623,1748899833336,-450.0,0.00016697,2]
[363852624,1748899833346,-430.0,0.00016697,2]
[363852625,1748899833356,-440.0,0.00016697,2]
[363852626,1748899833367,-430.0,0.00016697,2]
[363852627,1748899833376,-430.0,0.00016697,2]
[363852628,1748899833386,-430.0,0.00016697,2]
[363852629,1748899833396,-430.0,0.00016697,2]
[363852630,1748899833405,-430.0,0.00016697,2]
[363852631,1748899833415,-440.0,0.00016697,2]
[363852632,1748899833425,-430.0,0.00016697,2]
[363852633,1748899833434,-305.82518055,0.00016697,2]
[363852634,1748899833445,-440.0,0.00016697,2]
[363852635,1748899833455,-440.0,0.00016697,2]
[363852636,1748899833465,-440.0,0.00016697,2]
[363852637,1748899833475,-430.0,0.00016697,2]
[363852638,1748899833484,-450.0,0.00016697,2]
[363852639,1748899833494,-440.0,0.00016697,2]
[363852640,1748899833505,-504.78590229,0.00016697,2]
[363852641,1748899833515,-440.0,0.00016697,2]
[363852642,1748899833525,-430.0,0.00016697,2]
[363852643,1748899833534,-440.0,0.00016697,2]
[363852644,1748899833543,-450.0,0.00016697,2]
[363852645,1748899833552,-430.0,0.00016697,2]
[363852646,1748899833561,-440.0,0.00016697,2]
[363852647,1748899833570,-440.0,0.00016697,2]
[363852648,1748899833579,-298.51025099,0.00016697,2]
[363852649,1748899833591,-131.48974901,0.00016697,2]
[363852650,1748899833601,-272.85335192,0.00016697,2]
[363852651,1748899833610,-450.0,0.00016697,2]
[363852652,1748899833619,-440.0,0.00016697,2]
[363852653,1748899833629,-440.0,0.00016697,2]
[363852654,1748899833638,-440.0,0.00016697,2]
[363852655,1748899833647,-430.0,0.00016697,2]
[363852656,1748899833657,-440.0,0.00016697,2]
[363852657,1748899833667,-430.0,0.00016697,2]
[363852658,1748899833677,-440.0,0.00016697,2]
[363852659,1748899833687,-284.5567329,0.00016697,2]
[363852660,1748899833697,-440.0,0.00016697,2]
[363852661,1748899833707,-440.0,0.00016697,2]
[363852662,1748899833717,-440.0,0.00016697,2]
[363852663,1748899833725,-450.0,0.00016697,2]
[363852664,1748899833733,-440.0,0.00016697,2]
[363852665,1748899833742,-523.83360075,0.00016697,2]
[363852666,1748899833753,-470.0,0.00016697,2]
[363852667,1748899833761,-430.0,0.00016697,2]
[363852668,1748899833771,-430.0,0.00016697,2]
[363852669,1748899833780,-450.0,0.00016697,2]
[363852670,1748899833789,-430.0,0.00016697,2]
[363852671,1748899833798,-430.0,0.00016697,2]
[363852672,1748899833807,-440.0,0.00016697,2]
[363852673,1748899833816,-430.0,0.00016697,2]
[363852674,1748899833826,-430.0,0.00016697,2]
[363852675,1748899833836,-430.0,0.00016697,2]
[363852676,1748899833846,-440.0,0.00016697,2]
[363852677,1748899833855,-440.0,0.00016697,2]
[363852678,1748899833865,-430.0,0.00016697,2]
[363852679,1748899833874,-430.0,0.00016698,2]